Cogmind - Beta 10.2 @@@ ROGUE MODE // 2021.08.05 @ 19:42:30 Player: Olga Result: Destroyed by D-53 Grenadier with Mini Grenade Launcher Performance ------------- Evolutions (0) 0 Regions Visited (2) 400 Robots Destroyed (13) 65 Value Destroyed (378) 378 Prototype IDs (0) 0 Alien Tech Used (0) 0 Bonus (0) 0 TOTAL SCORE: 843 Bonus ------- None Cogmind --------- Core Integrity 0/250 Matter 300/300 Energy 100/100 System Corruption 0% Temperature Cool (0) Movement Core (550) Ox10 Location -10/Mines Parts ------- > --- POWER (1) -------- (None) > --- PROPULSION (2) --- (None) > --- UTILITY (2) ------ High-capacity Storage Unit Signal Interpreter > --- WEAPON (2) ------- (None) > --- INVENTORY (12) --- Ion Engine Medium Matter Pod (100) Medium Matter Pod (100) Medium Armor Plating Medium Armor Plating Heavy Assault Rifle Mining Laser Peak State ------------ > --- POWER ------------ Ion Engine > --- PROPULSION ------- Aluminum Leg Aluminum Leg > --- UTILITY ---------- Medium Storage Unit Signal Interpreter > --- WEAPON ----------- Heavy Assault Rifle Heavy Assault Rifle > --- INVENTORY -------- Light Ion Engine Aluminum Leg Medium Matter Pod Visual Processing Unit Medium Armor Plating Medium Armor Plating Light Assault Rifle Mining Laser [Rating: 10] Favorites ----------- Power Light Ion Engine Engine Light Ion Engine Propulsion Aluminum Leg Leg Aluminum Leg Utility Signal Interpreter Device Terrain Scanner Storage Medium Storage Unit Processor Signal Interpreter Weapon Heavy Assault Rifle Energy Gun EM Pulse Gun Ballistic Gun Heavy Assault Rifle Build | -11 -10 -10 ------- Run | Scr Mat Min Slots Evolved . | . . . Power . | . . . Propulsion . | . . . Utility . | . . . Weapon . | . . . Parts Attached 13 | . 9 4 Power 2 | . 1 1 Engine 2 | . 1 1 Core . | . . . Reactor . | . . . Propulsion 3 | . 2 1 Treads . | . . . Leg 3 | . 2 1 Wheel . | . . . Hover . | . . . Flight . | . . . Utility 4 | . 3 1 Device 1 | . 1 . Storage 2 | . 1 1 Processor 1 | . 1 . Hackware . | . . . Protection . | . . . Artifact . | . . . Weapon 4 | . 3 1 Energy Gun . | . . . Energy Cannon . | . . . Ballistic Gun 4 | . 3 1 Ballistic Cannon . | . . . Launcher . | . . . Special Weapon . | . . . Impact Weapon . | . . . Slashing Weapon . | . . . Piercing Weapon . | . . . Special Melee Weapon . | . . . Unidentified Prototypes . | . . . Parts Lost 8 | . . 8 Power 2 | . . 2 Propulsion 3 | . . 3 Utility . | . . . Weapon 3 | . . 3 Highest Loss Streak 6 | . . 6 Average Slot Usage (%) 98 | . 99 97 Engine 13 | . 14 13 Leg 27 | . 28 26 Storage 14 | . 14 14 Processor 13 | . 12 14 Energy Gun 1 | . 3 . Ballistic Gun 25 | . 24 27 Naked Turns . | . . . Heaviest Build 43 | 10 19 43 Greatest Support 20 | 20 20 20 Greatest Overweight (x) 12 | . . 12 Average Overweight (x) . | . . 1 Largest Inventory Capacity 12 | 6 8 12 Average Capacity 9 | 6 7 11 Most Carried 9 | 6 8 9 Average Carried 7 | 6 7 7 Final Capacity 12 | 6 8 12 Final Carried 8 | 6 8 7 Class Distribution -------------------- 64% | Mutant 35% | Scavenger-Mutant Dominant Class ---------------- Mutant | -10/Materials Mutant | -10/Mines Resources | -11 -10 -10 ----------- Run | Scr Mat Min Matter Collected 641 | 200 288 153 Remotely . | . . . Salvage Created 429 | . 295 134 Parts 38 | . 31 7 Haulers Intercepted . | . . . Recyclers Shooed . | . . . Parts Field Recycled . | . . . Retrieved Matter . | . . . Parts Self-Destructed . | . . . Prevented . | . . . Kills | -11 -10 -10 ------- Run | Scr Mat Min Combat Hostiles Destroyed 12 | . 9 3 Guns 12 | . 9 3 Classes Destroyed 3 | . 3 . Watcher 1 | . 1 . Swarmer 3 | . 3 . Grunt 9 | . 6 3 Best Kill Streak 3 | . 3 2 Combat Bots Only 3 | . 3 2 Max Kills in Single Turn 1 | . 1 1 Gunslinging . | . . . Exploded . | . . . Melee . | . . . Uniques/NPCs Destroyed . | . . . Combat | -11 -10 -10 -------- Run | Scr Mat Min Damage Taken 1169 | . 300 869 Core 260 | . 40 220 Absorbed by Shields . | . . . Core Remaining (%) 100 | 100 . . Volleys Fired 31 | . 25 6 Largest 2 | . 2 2 Hottest 60 | . 60 46 Shots Fired 62 | . 50 12 Gun 62 | . 50 12 Cannon . | . . . Launcher . | . . . Special . | . . . Kinetic 58 | . 46 12 Thermal . | . . . Explosive . | . . . Electromagnetic 4 | . 4 . Robot Hit Streak 29 | . 29 4 Robot Miss Streak 4 | . 4 2 Penetration Max . | . . . Secondary Targets . | . . . Shots Hit Robots 43 | . 36 7 Core Hits 21 | . 14 7 Critical Hits . | . . . Critical Kills . | . . . Critical Parts Destroyed . | . . . Melee Attacks . | . . . Impact . | . . . Slashing . | . . . Piercing . | . . . Sneak Attacks . | . . . Combat Hostiles . | . . . Follow-up Attacks . | . . . Damage Inflicted 542 | . 430 112 Guns 542 | . 430 112 Cannons . | . . . Explosions . | . . . Melee . | . . . Ramming . | . . . Kinetic 491 | . 379 112 Thermal . | . . . Explosive . | . . . Electromagnetic 51 | . 51 . Impact . | . . . Slashing . | . . . Piercing . | . . . Highest Corruption . | . . . Average Corruption . | . . . Corruption Purged . | . . . Overload Shots . | . . . Overflow Damage . | . . . Projectiles . | . . . Explosions . | . . . Melee . | . . . Knockbacks . | . . . Impact . | . . . Kinetic . | . . . Secondary . | . . . Self-Inflicted Damage . | . . . Shots . | . . . Rammed . | . . . Targets Rammed . | . . . Kicked . | . . . Crushed . | . . . Highest Temperature 20 | . 20 4 Average Temperature 7 | . 8 2 Received Heat Transfer 189 | . 141 48 Siege Activations . | . . . Robots Corrupted . | . . . Combat Hostiles . | . . . Parts Fried . | . . . Impact Corruptions . | . . . Robots Melted . | . . . Combat Hostiles . | . . . Parts Melted . | . . . Heat Transferred . | . . . Parts Sabotaged . | . . . Parts Stolen . | . . . Parts Stripped . | . . . Power Chain Reactions . | . . . Missiles Intercepted . | . . . Alert | -11 -10 -10 ------- Run | Scr Mat Min Peak Influence 210 | . 210 149 Initial 81 | . . 81 Average 85 | . 98 69 Maximum Alert Level 1 | . 1 . Low Security (%) 98 | 100 97 100 Level 1 1 | . 2 . Level 2 . | . . . Level 3 . | . . . Level 4 . | . . . Level 5 . | . . . High Security . | . . . Max Security . | . . . Squads Dispatched 3 | . 2 1 Investigation 3 | . 2 1 Extermination . | . . . Reinforcement . | . . . Assault . | . . . Garrison . | . . . Intercept . | . . . Construction Impeded . | . . . Haulers Reinforced . | . . . Stealth | -11 -10 -10 --------- Run | Scr Mat Min Distress Signals 1 | . 1 . Communications Jammed . | . . . Distress Signals . | . . . Times Spotted 38 | . 15 23 Peak Tracking Total 17 | . 5 17 Tactical Retreats 5 | . 3 2 Traps | -11 -10 -10 ------- Run | Scr Mat Min Traps Triggered 1 | . 1 . Indirectly . | . . . Trap Hack Attempts . | . . . Triggered . | . . . Disarmed . | . . . Reprogrammed . | . . . Reused . | . . . Traps Extracted . | . . . Installed . | . . . Triggered . | . . . Machines | -11 -10 -10 ---------- Run | Scr Mat Min Machines Disabled . | . . . Max in Single Turn . | . . . Machines Sabotaged . | . . . Garrisons Compromised . | . . . Overloaded Fab Kills . | . . . Fab Network Shutdowns . | . . . Hacking | -11 -10 -10 --------- Run | Scr Mat Min Machines Accessed 4 | . 2 2 Terminals 3 | . 2 1 Fabricators . | . . . Repair Stations . | . . . Recycling Units . | . . . Scanalyzers . | . . . Garrison Access . | . . . Total Hacks 10 | . 6 4 Successful 6 | . 3 3 Failed 4 | . 3 1 Catastrophic 1 | . 1 . Database Lockouts . | . . . Manual . | . . . Terminals 9 | . 6 3 Fabricators . | . . . Repair Stations . | . . . Recycling Units . | . . . Scanalyzers . | . . . Garrison Access . | . . . Terminal Hacks 6 | . 3 3 Open Door 1 | . . 1 Level Access Points 2 | . 1 1 Branch Access Points 1 | . 1 . Registered Components 1 | . 1 . Zone Layout 1 | . . 1 Fabricator Hacks . | . . . Repair Station Hacks . | . . . Recycling Unit Hacks . | . . . Scanalyzer . | . . . Garrison Access Hacks . | . . . Unauthorized Hacks . | . . . Terminals . | . . . Fabricators . | . . . Repair Stations . | . . . Recycling Units . | . . . Scanalyzers . | . . . Garrison Access . | . . . Data Cores Recovered . | . . . Used . | . . . Hacking Detections 3 | . 2 1 Full Trace Events 2 | . 1 1 Feedback Events . | . . . Feedback Blocked . | . . . Robot Schematics Acquired . | . . . Robots Built . | . . . Matter . | . . . Time . | . . . Total Robot Build Rating . | . . . Part Schematics Acquired . | . . . Parts Built . | . . . Matter . | . . . Time . | . . . Total Part Build Rating . | . . . Parts Repaired . | . . . Time . | . . . Parts Recycled . | . . . Recycled Matter . | . . . Retrieved Matter . | . . . Retrieved Components . | . . . Parts Scanalyzed . | . . . Part Schematics Acquired . | . . . Parts Damaged . | . . . Bothacking | -11 -10 -10 ------------ Run | Scr Mat Min Used RIF Installer . | . . . Robots Hacked . | . . . Non-combat . | . . . Combat . | . . . Robot Hacks Applied . | . . . Relay Couplers Released . | . . . Robots Rewired . | . . . Allies Hacked . | . . . Hacks Repelled . | . . . Allies | -11 -10 -10 -------- Run | Scr Mat Min Total Allies . | . . . Largest Group . | . . . Highest-Rated Group . | . . . Highest-Rated Ally . | . . . Total Orders . | . . . Ally Attacks . | . . . Total Damage . | . . . Kills . | . . . Allies Corrupted . | . . . Allies Melted . | . . . Intel | -11 -10 -10 ------- Run | Scr Mat Min Robot Analysis Total . | . . . Derelict Logs Recovered 1 | . . 1 Drone Launches . | . . . Drone Recoveries . | . . . Exploration | -11 -10 -10 ------------- Run | Scr Mat Min Turns Passed 1226 | 3 680 543 Spaces Moved 724 | 3 433 288 Core 5 | . . 5 Treads . | . . . Legs 719 | 3 433 283 Wheels . | . . . Hover . | . . . Flight . | . . . Fastest Speed 120 | 120 120 120 Average Speed 141 | 120 120 175 Slowest Speed 650 | 120 120 650 Overloaded Moves . | . . . Propulsion Burnouts . | . . . Robots Hopped . | . . . Cave-ins Triggered . | . . . Exploration Rate (%) 35 | 2 61 42 Regions Visited 2 Branch Regions 1 Pre-discovered Areas . | . . . Known Exits Taken 1 | . 1 . Unknown Exits Taken 1 | 1 . . Scrap Searched 1 | . . 1 Spaces Dug . | . . . Terrain Destroyed . | . . . Melee . | . . . Projectile . | . . . AOE . | . . . Terrain Rammed . | . . . Walls Destroyed . | . . . Machines Disabled . | . . . Actions | -11 -10 -10 --------- Run | Scr Mat Min Total 879 | 2 557 320 Wait 74 | . 55 19 Move 722 | 2 432 288 Hop . | . . . Pick Up 19 | . 17 2 Fast Attach 2 | . 2 . Attach 3 | . . 3 Detach . | . . . Swap 8 | . 7 1 Drop 20 | . 19 1 Fire 31 | . 25 6 Melee . | . . . Ram . | . . . Kick . | . . . Crush . | . . . Escape Stasis . | . . . Rewire . | . . . Trap . | . . . Miscellaneous . | . . . Route ------- -11/Scrapyard -10/Materials (discovered 4 exits: *Mat x3 / *Min) -10/Mines (discovered 2 exits: *Mat x2) History --------- Turn | Location | Event 1 | -11/Scrapyard | Discovered new exit (range 3) 4 | -11/Scrapyard | Entered Materials 116 | -10/Materials | Discovered new exit (range 13) 129 | -10/Materials | Identified exit to Materials 306 | -10/Materials | Build established: Mutant 326 | -10/Materials | Identified exit to Mines 684 | -10/Materials | Entered Mines 718 | -10/Mines | Learned Materials emergency access door positions 746 | -10/Mines | Discovered exit to Materials (range 7) 783 | -10/Mines | Build established: Scavenger-Mutant 802 | -10/Mines | Discovered exit to Materials (range 12) 817 | -10/Mines | Found the Drone Emporium 1150 | -10/Mines | Assembled infested the area 1155 | -10/Mines | Assisted by a Guerilla fighting off Assembled 1209 | -10/Mines | Core integrity fell below 50% 1213 | -10/Mines | Core integrity fell below 20% 1225 | -10/Mines | Build established: Mutant 1227 | -10/Mines | Destroyed by D-53 Grenadier with Mini Grenade Launcher Last Messages --------------- 01187_ D-53 Grenadier destroyed. 01191_ as-59395 destroyed. 01191_ as-21209 destroyed. 01192_ The unstable cave ceiling collapses. 01198_ Aluminum Leg destroyed. 01198_ R-06 Scavenger destroyed. 01199_ The unstable cave ceiling collapses. 01199_ U-05 Engineer lays Concrete. 01200_ Hvy. Assault Rifle destroyed. 01200_ Aluminum Leg destroyed. 01200_ U-05 Engineer lays Concrete. 01201_ The unstable cave ceiling collapses. 01202_ U-05 Engineer lays Concrete. 01206_ U-05 Engineer destroyed. 01207_ The unstable cave ceiling collapses. 01210_ Lgt. Ion Engine destroyed. 01219_ The unstable cave ceiling collapses. 01223_ as-78064 destroyed. 01226_ U-05 Engineer lays Concrete. 01227_ Hvy. Assault Rifle destroyed. Map ----- +----------------------------------------------------+ | ????????????????????? * ##???????????????????? | | ?????????????????????# ????????????????????? | | ????????????????????? ????????????????????? | | ?????????????????## ????????????????????? | | ?????????????????# %= ???????????????????? | | ?????????????????# % ????????????????????? | | ?????????????????# ????????????????????? | | ????????????????## #????????????????????? | | ???????????????## #????????????????????? | | ???????????????# #?????????????????????? | | ??????????????## ######????????????????? | | ??????????????# # #????????????????? | | ??????????????## #????????????????? | | ?????????????## ##????????????????? | | ????????????## # ###?????????????????? | | ????????????# !%!# ####???????????????????? | | ????????????# *d ##?????????????????????? | | ????????????## #?????????????????????? | | ?????????????## #############?########### | | ?????????????## ## | | ?????????????# # # """ """ """ """ """ | | ?????????????# # # """ """ """ """ """ | | ?????????????# """ """ """ """ """ | | ?????????????# # | | ?????????????# % """ """ """ """ | | ?????????????# @ """ """ """ """ | | ?????????????## # """ """ """ """ | | ??????????????## | | ???????????????## # # | | ????????????????#####u######################## | | ????????????????????# #??????????????????????? | | ????????????????????# #??????????????????????? | | ????????????????????# #??????????????????????? | | ????????????????????# #??????????????????????? | | ??????????????####### #??????????????????????? | | ??????????????# #?###?################## | | ??????????????# #########""## # | | ??????###?????# #??????#" # < # | | ?????## ##????# #??????#"! ! | | ????## ###### #??????#" # | | ???## < #??????#" #X # | | ??## ########??????##""## # | | ??# ##??????????????###?### # | | ??# #####################?# # | | ??## ! #?## ############ | | ???# != #### #??????????? | | ???## #################### #??????????? | | ????###???????????????????#########??????????? | | ?????????????????????????????????????????????? | | ?????????????????????????????????????????????? | +----------------------------------------------------+ Best States ------------- Heat Dissipation 25 Energy Generation 10 Energy Capacity 250 Matter Stores 300 Matter Capacity 300 Sight Range 16 Terrain Scan Range 14 Terrain Scan Density 10 Evasion (%) 40 Item Schematics ----------------- None Robot Schematics ------------------ None Fabricated ------------ Nothing Alien Tech Used ----------------- None Achievements -------------- None Challenges ------------ None Game ------ Seed helloworld Manual? 1 Play Time 00:12:04 Cumulative 16.7 hours Start 2021.08.05 @ 19:30:57 End 2021.08.05 @ 19:42:30 Sessions 1 Manual Loads 0 Difficulty Rogue Special Mode None Game No. 28 Rogue 28 Adventurer 0 Explorer 0 Win Type - Total 0 Types 0/0/0/0/0/0/0/0/0 Lore% 20 Gallery% 21 Achievement% 15 Wizard Run 0 Options --------- ASCII 1 Keyboard 0 Movement Vi Keybinds 0 Fullscreen 1 Font 24/Smallcaps Map View 76x50 Tactical HUD 1 Map Filters NONE Filters NONE Steam 1 RUN: cafc016d-bcb0-4722-9b0d-e8169f74bf8b